bitfinex/quotes_ETHUSD_20240907
["timestamp","ask_amount","ask_price","bid_price","bid_amount"]
[1725733869543,3.0,2286.3,2286.0,8.7489]
[1725733869544,3.0,2286.3,2286.2,8.74814]
[1725733869755,3.0,2286.7,2286.6,4.3733]
[1725733870072,3.0,2286.7,2286.6,8.7466]
[1725733870281,5.76291695,2287.1,2286.7,4.37305]
[1725733870575,3.76291695,2287.3,2287.0,4.37254]
[1725733870872,3.76291695,2287.3,2287.0,4.37243]
[1725733871074,3.76291695,2287.3,2287.0,8.74487]
[1725733871251,3.76291695,2287.3,2287.1,4.37232]
[1725733871433,2.0,2287.5,2287.2,4.37213]
[1725733871638,6.37094,2287.9,2287.4,4.37177]
[1725733871848,3.76291695,2287.7,2287.4,4.37166]
[1725733872064,3.76291695,2287.7,2287.4,8.74331]
[1725733872377,3.76291695,2287.7,2287.4,4.37165]
[1725733872541,0.66089748,2287.6,2287.4,4.37165]
[1725733873045,3.66089748,2287.6,2287.4,4.37165]
[1725733873435,3.0,2287.8,2287.4,4.37165]
[1725733873770,3.0,2287.5,2287.4,4.37165]
[1725733874278,3.0,2287.6,2287.4,4.37165]
[1725733874495,3.0,2287.6,2287.4,8.74333]
[1725733875096,3.0,2287.6,2287.5,4.37158]
[1725733876295,3.0,2287.6,2287.4,8.74331]
[1725733877396,3.0,2287.6,2287.4,4.37165]
[1725733877603,3.0,2287.6,2287.4,8.74333]
[1725733878512,3.0,2287.6,2287.5,4.37158]
[1725733878676,3.0,2287.6,2287.4,4.37165]
[1725733879200,8.79541443,2287.5,2287.0,4.37239]
[1725733879365,3.76291695,2287.3,2287.0,4.37239]
[1725733879567,3.0,2287.2,2287.1,4.37233]
[1725733882206,3.0,2287.2,2287.1,8.74467]
[1725733882509,3.0,2287.5,2287.2,4.37205]
[1725733882703,3.64392087,2287.5,2287.2,4.37205]
[1725733883288,3.64392087,2287.5,2287.3,4.37194]
[1725733885120,3.0,2287.5,2287.3,4.37185]
[1725733885293,3.0,2287.5,2287.4,4.37177]
[1725733886728,3.0,2287.5,2287.3,4.37185]
[1725733886916,3.0,2287.5,2287.3,8.7437]
[1725733888099,3.0,2287.5,2287.3,4.37185]
[1725733888921,3.0,2287.5,2287.3,8.7437]
[1725733889222,3.0,2287.5,2287.3,4.37185]
[1725733889826,3.0,2287.5,2287.3,8.74369]
[1725733890033,3.0,2287.5,2287.4,4.37177]
[1725733890338,3.0,2287.5,2287.4,8.74354]
[1725733890536,3.0,2287.8,2287.6,4.37124]
[1725733891113,5.76291695,2287.9,2287.6,2.42242573]
[1725733891114,0.17327199,2287.9,2287.6,2.42242573]
[1725733891353,3.76291695,2288.0,2287.8,4.37101]
[1725733891517,3.76291695,2288.0,2287.9,4.37082]
[1725733891716,4.13920865,2288.0,2287.3,2.335]
[1725733891917,4.13920865,2288.0,2287.5,4.37146]
[1725733891918,9.09470571,2288.0,2287.5,4.37146]
[1725733892240,0.58483706,2287.9,2287.5,4.37146]
[1725733892554,0.58483706,2287.9,2287.4,8.74339]
[1725733892555,3.76291695,2287.6,2287.4,8.74339]
[1725733892714,3.0,2287.5,2287.4,8.74339]
[1725733894225,3.0,2287.5,2287.4,16.761693]
[1725733894431,3.76291695,2287.7,2287.5,8.74316]
[1725733894432,3.0,2287.6,2287.5,8.74316]
[1725733908103,4.56668262,2287.6,2287.5,8.74316]
[1725733908339,1.56668262,2287.6,2287.5,8.74316]
[1725733911430,1.56668262,2287.6,2287.4,4.37165]
[1725733911758,1.56668262,2287.5,2287.4,4.37165]
[1725733919149,3.17581466,2287.7,2287.6,8.74278]
[1725733919328,1.74249728,2287.7,2287.6,8.74278]
[1725733919519,1.74249728,2287.7,2287.3,4.37185]
[1725733919750,1.56668262,2287.4,2287.3,8.74381]
[1725733921395,1.56668262,2287.4,2287.1,4.3722]
[1725733921553,1.56668262,2287.2,2287.1,4.3722]
[1725733923704,1.56668262,2287.2,2287.1,8.74454]
[1725733925665,1.56668262,2287.2,2287.1,4.3722]
[1725733927577,1.56668262,2287.2,2287.1,8.74454]
[1725733928699,1.56668262,2287.2,2287.1,10.28152]
[1725733933578,1.74215429,2287.4,2287.1,5.90918]
[1725733933816,7.82931966,2288.1,2287.7,2.2526]
[1725733933985,7.12097117,2288.6,2288.2,4.37024]
[1725733934180,1.56668262,2288.3,2288.2,4.37024]
[1725733934879,1.56668262,2288.3,2288.1,4.37043]
[1725733935091,1.56668262,2288.3,2288.2,4.37024]
[1725733935614,2.11401968,2288.3,2287.9,4.37069]
[1725733935831,2.11401968,2288.3,2287.7,4.37107]
[1725733935832,1.56668262,2288.0,2287.8,4.37091]
[1725733935990,3.75978217,2287.9,2287.8,4.37091]
[1725733936680,6.75978217,2287.9,2287.8,4.37091]
[1725733937508,6.75978217,2287.9,2287.8,8.74192]
[1725733941632,6.93382044,2287.9,2287.8,8.74192]
[1725733941840,3.0,2287.9,2287.8,13.11293]
[1725733942001,3.75978217,2288.2,2288.1,8.74086]
[1725733942202,6.75978217,2288.2,2288.1,8.74086]
[1725733942402,6.75978217,2288.2,2288.1,9.26753165]
[1725733942635,6.75978217,2288.2,2288.1,8.74086]
[1725733947967,6.93364888,2288.2,2288.1,8.74086]
[1725733955768,6.75978217,2288.2,2288.1,8.74086]
[1725733955977,4.56576954,2288.2,2288.1,8.74086]
[1725733956139,1.56576954,2288.2,2288.1,8.74086]
[1725733956340,1.56576954,2288.2,2288.1,9.71823079]
[1725733958334,1.56576954,2288.2,2288.1,4.37043]
[1725733965774,0.17870954,2288.3,2288.2,4.37024]
[1725733965954,1.56576954,2288.3,2288.2,4.37024]
[1725733966947,1.56576954,2288.3,2288.0,4.37062]
[1725733967143,1.56576954,2288.3,2287.1,5.29033032]
[1725733967144,1.56576954,2288.1,2287.8,4.3709]
[1725733967368,1.56576954,2287.9,2287.8,4.3709]
[1725733967954,1.56576954,2287.9,2287.7,4.37119]
[1725733968157,1.56576954,2287.9,2287.5,4.37145]
[1725733968388,1.56576954,2287.6,2287.5,4.37145]
[1725733968694,1.56576954,2287.6,2287.4,4.37168]
[1725733968990,1.56576954,2287.5,2287.3,4.37184]
[1725733969343,1.56576954,2287.5,2287.3,4.37183]
[1725733969775,1.56576954,2287.5,2287.3,8.74366]
[1725733970787,1.56576954,2287.5,2287.4,4.37177]
[1725733970952,1.56576954,2287.5,2287.3,4.37183]
[1725733971861,1.74442742,2287.5,2287.3,4.37183]
[1725733972058,3.76116483,2287.4,2287.3,4.37183]
[1725733972391,6.76116483,2287.4,2287.3,4.37183]
[1725733972967,8.00248416,2287.4,2286.9,4.3726]
[1725733973284,0.45828458,2286.8,2286.6,4.3732]
[1725733973589,4.21944941,2286.8,2286.7,4.37311]
[1725733973974,7.21944941,2286.8,2286.7,4.37311]
[1725733974957,7.21944941,2286.8,2286.7,8.74622]
[1725733978478,6.76116483,2286.8,2286.7,8.74622]
[1725733981693,3.0,2286.8,2286.7,8.74622]
[1725733981924,3.93394789,2286.9,2286.8,4.37292]
[1725733982074,6.93394789,2286.9,2286.8,4.37292]
[1725733982398,6.76116483,2286.9,2286.8,4.37292]
[1725733983081,6.76116483,2286.9,2286.8,8.74584]
[1725733983281,3.0,2286.9,2286.8,9.846724]
[1725733983481,3.0,2287.0,2286.9,8.74546]
[1725733984783,3.0,2287.0,2286.9,11.00846]
[1725733985986,3.0,2287.0,2286.9,8.74546]
[1725733986288,3.7226266,2287.4,2287.1,4.37225]
[1725733986629,1.11526266,2287.3,2287.1,4.37225]
[1725733986818,3.7226266,2287.4,2287.1,4.37225]
[1725733986819,0.7226266,2287.4,2287.1,4.37225]
[1725733987124,0.17528954,2287.4,2287.1,4.37225]
[1725733987309,3.0,2287.5,2287.3,4.37196]
[1725733987511,3.76116483,2287.4,2287.3,4.37196]
[1725733989040,6.76116483,2287.4,2287.1,4.37218]
[1725733989334,6.76116483,2287.3,2287.2,4.37215]
[1725733989532,7.21933592,2287.3,2287.2,4.37215]
[1725733992512,7.95889166,2287.3,2287.1,4.37232]
[1725733992751,7.95889166,2287.3,2286.8,4.37291]
[1725733992963,3.76116483,2286.9,2286.8,4.37291]
[1725733993259,6.76116483,2286.9,2286.7,4.373]
[1725733993638,3.0,2286.8,2286.7,4.373]
[1725733994015,4.56793211,2286.8,2286.7,4.373]
[1725733994213,1.56793211,2286.8,2286.7,4.373]
[1725733995238,1.56793211,2286.8,2286.6,4.3732]
[1725733995446,1.56793211,2286.8,2286.5,4.37335]
[1725733995754,4.37251,2287.1,2286.5,4.37335]
[1725733995755,1.56793211,2286.6,2286.5,4.37335]
[1725733995953,3.76397919,2286.6,2286.5,4.37335]
[1725733996163,6.76397919,2286.6,2286.5,4.37335]
[1725733999053,6.76397919,2286.6,2286.5,4.32943791]
[1725733999850,12.17637121,2286.6,2285.9,4.3847135]
[1725734000054,3.76397919,2286.0,2285.9,4.3847135]
[1725734000355,6.76397919,2286.0,2285.9,8.7593535]
[1725734000919,6.76397919,2286.0,2285.9,0.0102335]
[1725734004719,7.2221337,2286.0,2285.9,0.0102335]
[1725734004923,8.38176907,2286.0,2285.9,0.0102335]
[1725734005419,4.92207706,2285.9,2285.4,4.37557]
[1725734005720,3.54733706,2285.9,2285.5,4.3754]
[1725734005921,4.97833596,2285.9,2285.5,4.3754]
[1725734006404,3.76397919,2285.6,2285.5,4.3754]
[1725734006676,6.76397919,2285.6,2285.5,4.3754]
[1725734007285,3.76397919,2285.8,2285.7,8.75004]
[1725734007470,4.2221337,2286.0,2285.9,8.74928]
[1725734008140,4.2221337,2286.0,2285.9,11.01048]
[1725734008338,4.2221337,2286.0,2285.9,4.37464]
[1725734008539,7.2221337,2286.0,2285.9,4.37464]
[1725734008974,7.2221337,2286.0,2285.9,4.3307139]
[1725734010484,7.2221337,2286.0,2285.9,8.7053539]
[1725734010662,7.2221337,2286.0,2285.9,4.3307139]
[1725734013333,7.2221337,2286.0,2285.9,9.16539882]
[1725734014497,7.2221337,2286.0,2285.9,8.7053539]
[1725734014699,7.2235176,2286.0,2285.9,8.7053539]
[1725734014906,7.2235176,2286.0,2285.9,4.3307139]
[1725734015082,7.2235176,2286.0,2285.9,8.7053539]
[1725734015964,3.45815451,2286.0,2285.9,8.7053539]
[1725734016177,3.0,2286.1,2286.0,8.74886]
[1725734019902,3.0,2286.1,2286.0,4.37441]
[1725734020198,3.0,2286.1,2285.9,8.74918]
[1725734020408,3.76536309,2286.0,2285.9,8.74908]
[1725734020705,6.76536309,2286.0,2285.9,8.74908]
[1725734022406,6.76533686,2286.0,2285.9,8.74908]
[1725734022568,6.76533686,2286.0,2285.9,4.37454]
[1725734023503,6.76533686,2286.0,2285.9,8.74918]
[1725734027624,6.76533686,2286.0,2284.6,9.51943734]
[1725734027625,7.48768958,2286.0,2285.3,2.4091]
[1725734027770,7.48768958,2286.0,2285.6,4.37512]
[1725734027771,3.76533686,2285.7,2285.6,4.37512]
[1725734028120,6.76533686,2285.7,2285.6,4.37512]
[1725734030275,6.76533686,2285.7,2285.5,4.3753]
[1725734030480,3.0,2285.6,2285.5,4.3753]
[1725734030799,3.0,2285.6,2285.3,6.78474]
[1725734032014,3.0,2285.6,2285.4,4.37559]
[1725734032879,3.67653369,2285.6,2285.3,8.75133]
[1725734033189,3.76533686,2285.4,2285.3,4.37564]
[1725734033387,6.76533686,2285.4,2285.3,4.37564]
[1725734035511,6.76533686,2285.4,2285.2,4.37597]
[1725734035811,3.0,2285.3,2285.2,4.37597]
[1725734036189,4.22387075,2285.3,2284.9,8.75285]
[1725734036497,3.76533686,2285.0,2284.9,4.37642]
[1725734036809,6.76533686,2285.0,2284.9,4.37642]
[1725734037495,6.76533686,2285.0,2284.9,8.75297]
[1725734037832,3.0,2285.0,2284.9,8.75297]
[1725734038120,3.0,2285.1,2285.0,8.75272]
[1725734038501,3.0,2285.1,2284.8,8.7533]
[1725734038700,3.0,2285.1,2284.8,4.37662]
[1725734038701,3.76533686,2284.9,2284.8,4.37662]
[1725734038886,3.0,2284.9,2284.8,4.37662]
[1725734039091,6.76533686,2285.0,2284.8,8.75337]
[1725734040383,6.76533686,2285.0,2284.8,4.37662]
[1725734040589,6.76533686,2285.0,2284.9,4.37655]
[1725734040788,6.76533686,2285.0,2284.8,4.37662]
[1725734041806,6.76533686,2285.0,2284.8,8.75326]
[1725734043021,6.76533686,2285.0,2284.8,4.37662]
[1725734043388,6.76533686,2285.0,2284.8,8.75327]
[1725734043785,3.0,2285.0,2284.9,8.7531]
[1725734044015,3.76533686,2285.4,2285.2,4.37582]
[1725734044225,0.54733706,2285.3,2285.0,4.37626]
[1725734044534,3.76533686,2285.2,2285.1,4.37617]
[1725734045390,6.76533686,2285.2,2285.1,4.37617]
[1725734046824,6.76533686,2285.2,2285.0,4.37635]
[1725734047036,3.0,2285.1,2285.0,4.37635]
[1725734048691,3.0,2285.1,2283.9,3.82523048]
[1725734048692,2.0,2284.8,2283.9,3.82523048]
[1725734049000,4.47191609,2284.7,2284.3,4.37762]
[1725734049338,4.47191609,2284.7,2284.2,4.3777]
[1725734049339,3.76533686,2284.7,2284.4,4.37751]
[1725734049543,3.0,2284.6,2284.3,4.37766]
[1725734050030,3.0,2284.6,2284.5,4.37732]
[1725734050250,0.39702938,2285.3,2284.9,4.37637]
[1725734050251,3.76533686,2285.3,2284.9,4.37637]
[1725734050398,3.76533686,2285.3,2284.8,4.37659]
[1725734050734,3.0,2285.2,2285.0,4.37635]
[1725734050945,3.57168457,2285.4,2285.0,8.7527]
[1725734051180,4.22345352,2285.2,2285.1,4.37607]
[1725734051478,4.22345352,2285.2,2285.1,8.75224]
[1725734051649,4.22345352,2285.2,2285.1,4.37607]
[1725734052548,7.22345352,2285.2,2285.1,4.37607]
[1725734052748,6.76533686,2285.2,2285.1,4.37607]
[1725734054917,7.44187055,2285.2,2284.9,4.37654]
[1725734055113,3.0,2285.1,2284.9,4.37654]
[1725734055911,3.0,2285.1,2284.8,4.3766]
[1725734056272,3.0,2285.1,2284.7,4.37692]
[1725734056474,3.76533686,2284.9,2284.6,4.37701]
[1725734056707,3.0,2284.8,2284.6,8.75405]
[1725734056874,3.0,2284.8,2284.6,4.37701]
[1725734057281,3.0,2284.8,2284.7,4.37694]
[1725734057593,3.0,2284.8,2284.6,4.37701]
[1725734057777,3.0,2284.8,2284.6,8.75404]
[1725734058121,3.0,2284.8,2284.7,4.37694]
[1725734059489,3.0,2284.8,2284.6,8.75405]
[1725734059885,3.0,2284.8,2284.6,8.75404]
[1725734060092,3.0,2284.8,2284.6,4.37701]
[1725734062837,3.0,2284.8,2284.7,4.37694]
[1725734067031,3.0,2284.8,2284.7,8.75388]
[1725734067239,3.0,2284.8,2284.7,4.37694]
[1725734071352,3.0,2284.8,2284.6,4.37701]
[1725734071781,3.0,2284.8,2284.6,8.75405]
[1725734073759,3.0,2284.8,2284.7,4.37694]
[1725734076192,3.0,2284.8,2284.7,6.63154]
[1725734076501,3.0,2284.8,2284.7,4.37694]
[1725734077428,11.19533686,2285.5,2285.4,4.3756]
[1725734077552,3.76533686,2285.5,2285.4,4.3756]
[1725734078456,7.55505805,2286.0,2285.6,4.37514]
[1725734078457,1.18050805,2286.0,2285.6,4.37514]
[1725734078672,3.76533686,2285.7,2285.6,8.75025]
[1725734078896,3.76533686,2285.9,2285.8,4.37482]
[1725734079562,3.76533686,2285.9,2285.8,8.74965]
[1725734081180,6.76533686,2285.9,2285.8,8.74965]
[1725734082495,7.44187055,2285.9,2285.4,8.75097]
[1725734082801,3.76533686,2285.6,2285.4,4.37547]
[1725734083007,6.76533686,2285.8,2285.4,4.37547]
[1725734083299,6.76533686,2285.8,2285.5,4.37534]
[1725734083503,7.94698191,2285.8,2285.5,4.37534]
[1725734085321,7.94698191,2285.8,2285.6,4.37521]
[1725734086899,6.76533686,2285.8,2285.6,4.37521]
[1725734087798,6.76533686,2285.8,2285.6,4.37511]
[1725734088327,6.76533686,2285.8,2285.7,4.37502]
[1725734098948,6.76533686,2285.8,2285.3,4.37578]
[1725734099128,3.76533686,2285.4,2285.3,8.75157]
[1725734099327,6.76533686,2285.4,2285.3,8.75157]
[1725734100030,7.22344343,2285.4,2285.3,8.75157]
[1725734102050,5.02761363,2285.4,2285.3,8.75157]
[1725734102258,2.02761363,2285.4,2285.3,8.75157]
[1725734104266,2.02761363,2285.4,2285.3,12.652132]
[1725734104428,0.45810657,2285.4,2285.3,17.027922]
[1725734106463,0.45810657,2285.4,2285.3,21.953712]
[1725734109120,2.02761363,2285.4,2285.3,17.027922]
[1725734111127,0.45810657,2285.4,2285.3,17.027922]
[1725734115613,2.02761363,2285.4,2285.3,8.75157]
[1725734122435,0.45810657,2285.4,2285.3,8.75157]
[1725734122733,2.02761363,2285.4,2285.3,8.75157]
[1725734125069,0.45810657,2285.4,2285.3,13.12736]
[1725734125244,0.45810657,2285.4,2285.3,19.502202]
[1725734126173,0.45810657,2285.4,2285.3,15.126412]
[1725734131369,0.45810657,2285.4,2285.3,17.41314558]
[1725734131570,0.45810657,2285.4,2285.3,15.126412]
[1725734132098,0.45810657,2285.4,2285.3,17.41320829]
[1725734133062,0.45810657,2285.4,2285.3,17.4131331]
[1725734133263,0.45810657,2285.4,2285.3,21.7889231]
[1725734133683,0.45810657,2285.4,2285.3,22.70694342]
[1725734135005,0.45810657,2285.4,2285.3,21.7889231]
[1725734136264,0.45810657,2285.4,2285.3,22.70694342]
[1725734136491,0.45810657,2285.4,2285.3,21.7889231]
[1725734137382,6.57e-06,2285.4,2285.3,22.3389231]
[1725734137708,6.57e-06,2285.4,2285.3,29.22157589]
[1725734138072,6.57e-06,2285.4,2285.3,33.5971414]
[1725734138489,6.57e-06,2285.4,2285.3,36.77244693]
[1725734138685,6.57e-06,2285.4,2285.3,35.59069807]
[1725734139427,6.57e-06,2285.4,2285.3,33.2898293]
[1725734139715,6.57e-06,2285.4,2285.3,35.58874453]
[1725734139885,6.57e-06,2285.4,2285.3,33.2898293]
[1725734140090,6.57e-06,2285.4,2285.3,35.58868359]
[1725734140289,6.57e-06,2285.4,2285.3,34.93041871]
[1725734141077,6.57e-06,2285.4,2285.3,34.47020715]
[1725734141279,6.57e-06,2285.4,2285.3,34.93041871]
[1725734141789,6.57e-06,2285.4,2285.3,34.51896521]
[1725734141995,6.57e-06,2285.4,2285.3,34.93037757]
[1725734142203,6.57e-06,2285.4,2285.3,30.34502667]
[1725734142414,6.57e-06,2285.4,2285.3,34.92870876]
[1725734142814,6.57e-06,2285.4,2285.3,34.46878769]
[1725734143012,3.0,2285.9,2285.8,19.95632]
[1725734143182,3.0,2285.9,2285.8,22.93945]
[1725734143511,1.56950706,2286.2,2286.1,13.12278]
[1725734143810,3.0,2286.4,2286.3,13.12161]
[1725734144292,0.45826969,2286.4,2286.3,13.12161]
[1725734144481,0.45826969,2286.4,2286.3,17.49548]
[1725734144679,0.45826969,2286.4,2286.3,20.040728]
[1725734156544,0.45826969,2286.4,2286.3,15.666858]
[1725734156711,0.45826969,2286.4,2286.3,8.74774]
[1725734157661,0.45826969,2286.4,2286.3,4.37387]
[1725734158634,0.45826969,2286.4,2286.3,8.74774]
[1725734159001,0.63680077,2286.4,2286.3,8.74774]
[1725734162171,0.85743155,2286.4,2286.3,4.37387]
[1725734162335,0.85743155,2286.4,2285.5,6.85459]
[1725734162336,0.85743155,2286.4,2286.0,4.37444]
[1725734162542,1.56950706,2286.2,2285.9,4.37452]
[1725734162753,1.56950706,2286.0,2285.7,4.37484]
[1725734163042,1.56950706,2285.8,2285.7,4.37484]
[1725734163736,0.45828579,2285.9,2285.8,4.37483]
[1725734163966,4.22400553,2285.9,2285.8,4.37483]
[1725734164175,7.22400553,2285.9,2285.8,4.37483]
[1725734164385,7.22400553,2285.9,2285.8,8.74966]
[1725734164547,3.45828579,2285.9,2285.8,13.12449]
[1725734164754,0.45828579,2285.9,2285.8,13.12449]
[1725734166286,0.45828579,2285.9,2285.8,8.74966]
[1725734172808,0.45828579,2285.9,2285.8,10.062141]
[1725734172991,0.45828579,2285.9,2285.8,14.436971]
[1725734174007,0.45828579,2285.9,2285.8,10.062141]
[1725734174304,0.45828579,2285.9,2285.8,8.74966]
[1725734177460,0.45828579,2285.9,2285.8,4.37483]
[1725734177689,0.45828579,2285.9,2285.7,8.74991]
[1725734177929,0.45828579,2285.9,2285.8,4.37483]
[1725734180763,0.45828579,2285.9,2285.7,4.37492]
[1725734180961,3.76571974,2285.8,2285.7,4.37492]
[1725734181178,6.76571974,2285.8,2285.7,4.37492]
[1725734185221,4.37507,2285.7,2285.3,4.37576]
[1725734185369,4.37507,2285.7,2284.9,6.85923]
[1725734185370,3.76571974,2285.1,2285.0,4.37636]
[1725734185568,6.76571974,2285.1,2285.0,8.75272]
[1725734185992,5.02819997,2285.1,2285.0,8.75272]
[1725734186198,2.02819997,2285.1,2285.0,8.75272]
[1725734192733,2.02819997,2285.1,2285.0,13.12908]
[1725734192893,0.45829675,2285.1,2285.0,21.851154]
[1725734199231,0.45829675,2285.1,2285.0,17.474794]
[1725734206174,0.45829675,2285.1,2285.0,14.441994]
[1725734208939,0.45829675,2285.1,2285.0,13.12908]
[1725734209152,0.45829675,2285.1,2285.0,8.75272]
[1725734216102,0.73429675,2285.1,2285.0,8.75272]
[1725734217871,0.73429675,2285.1,2285.0,4.37636]
[1725734219174,0.90603194,2285.1,2285.0,4.37636]
[1725734219486,0.90603194,2285.1,2285.0,8.75272]
[1725734219687,0.90603194,2285.1,2285.0,4.37636]
[1725734220012,0.45829675,2285.1,2285.0,8.75272]
[1725734228434,0.45829675,2285.1,2285.0,4.37636]
[1725734228641,0.68871675,2285.1,2285.0,8.75272]
[1725734229132,0.68871675,2285.1,2285.0,4.37636]
[1725734230503,0.68871675,2285.1,2285.0,8.75272]
[1725734230933,0.68871675,2285.1,2285.0,4.37636]
[1725734231518,0.68871675,2285.1,2285.0,8.75272]
[1725734231729,0.45829675,2285.1,2285.0,8.75272]
[1725734232048,3.45829675,2285.1,2285.0,8.75272]
[1725734233102,3.45829675,2285.1,2285.0,4.37636]
[1725734233330,3.45829675,2285.1,2284.9,4.37643]
[1725734233645,4.56990322,2285.0,2284.9,4.37643]
[1725734233944,1.56990322,2285.0,2284.9,8.75298]
[1725734234243,4.56990322,2285.0,2284.9,4.37643]
[1725734234601,1.56990322,2285.0,2284.9,4.37643]
[1725734235817,1.56990322,2285.0,2284.6,3.91867]
[1725734236021,0.916445,2284.9,2284.7,4.37694]
[1725734236566,0.916445,2284.9,2284.6,8.29571]
[1725734237157,0.916445,2284.9,2284.6,3.91867]
[1725734237344,0.45833641,2284.8,2284.6,3.91867]
[1725734237543,1.56990322,2284.7,2284.6,3.91867]
[1725734237748,1.86437168,2284.7,2284.6,3.91867]
[1725734237949,0.276,2284.6,2284.4,4.37735]
[1725734238256,0.276,2284.6,2284.2,4.37776]
[1725734238257,1.56990322,2284.5,2284.2,8.75554]
[1725734238424,1.56990322,2284.3,2284.2,4.37776]
[1725734242435,2.01760244,2284.3,2284.1,4.37802]
[1725734242760,2.01760244,2284.3,2284.2,4.3779]
[1725734243770,3.0,2284.6,2284.4,4.37749]
[1725734243771,3.276,2284.6,2284.4,4.37749]
[1725734243973,0.45833641,2284.8,2284.1,2.3369]
[1725734244277,0.45833641,2284.8,2284.7,4.37694]
[1725734244278,0.63428267,2284.8,2284.7,4.37694]
[1725734244425,3.63428267,2284.8,2284.7,4.37694]
[1725734244733,0.45833641,2284.8,2284.7,8.75388]
[1725734244937,2.02823963,2284.8,2284.7,10.066998]
[1725734245661,2.02823963,2284.8,2284.7,8.75388]
[1725734245829,0.45833641,2284.8,2284.7,8.75388]
[1725734246029,2.02823963,2284.8,2284.7,8.75388]
[1725734250531,2.30423963,2284.8,2284.7,4.37694]
[1725734250699,2.30423963,2284.8,2284.7,4.24907116]
[1725734250983,2.30423963,2284.8,2284.6,4.37709]
[1725734250984,2.55249693,2284.8,2284.6,4.37709]
[1725734251158,1.56990322,2284.7,2284.6,4.37709]
[1725734251480,1.56990322,2284.7,2284.5,4.37728]
[1725734251481,4.56990322,2284.7,2284.5,4.37728]
[1725734252212,3.77082568,2284.6,2284.5,4.37728]
[1725734252354,6.77082568,2284.6,2284.5,4.37728]
[1725734252555,7.84616762,2284.6,2284.5,4.37728]
[1725734253191,7.84616762,2284.6,2284.4,4.37741]
[1725734253368,0.276,2284.4,2284.3,4.3776]
[1725734253556,4.04682568,2284.4,2284.3,4.3777]
[1725734253758,7.04682568,2284.4,2284.3,4.3777]
[1725734254067,7.22916168,2284.4,2284.3,8.7554]
[1725734257482,7.22916168,2284.4,2284.3,13.1331]
[1725734257807,3.458336,2284.4,2284.3,16.89341]
[1725734258053,0.458336,2284.4,2284.3,21.27111]
[1725734258166,11.20082568,2285.0,2284.9,8.7531]
[1725734258507,3.77082568,2285.2,2285.1,8.75234]
[1725734259022,3.94338726,2285.2,2285.1,8.75234]
[1725734259701,6.94338726,2285.2,2285.1,8.75234]
[1725734263807,6.94338726,2285.2,2285.1,4.37617]
[1725734263989,7.66532599,2285.2,2285.1,4.37617]
[1725734264190,7.66532599,2285.2,2284.9,8.75286]
[1725734264392,3.77082568,2285.0,2284.9,4.37643]
[1725734264590,6.77082568,2285.0,2284.9,8.75298]
[1725734265007,6.77082568,2285.0,2284.9,11.19998]
[1725734265703,6.77082568,2285.0,2284.9,17.134197]
[1725734265704,3.0,2285.0,2284.9,17.134197]
[1725734266035,3.0,2285.1,2285.0,8.75272]
[1725734267401,11.20082568,2285.6,2285.2,4.37598]
[1725734267602,3.77082568,2285.6,2285.5,8.75082]
[1725734268611,6.77082568,2285.6,2285.5,8.75082]
[1725734270583,6.77082568,2285.6,2285.5,4.37541]
[1725734270906,6.77082568,2285.6,2285.5,8.75082]
[1725734272810,6.77082568,2285.6,2285.5,4.37541]
[1725734273081,7.46523858,2285.6,2285.5,4.37541]
[1725734274011,0.17330334,2285.7,2285.5,6.82241]
[1725734274215,7.43,2286.0,2285.9,8.74928]
[1725734274440,0.276,2286.3,2285.9,8.74928]
[1725734274441,4.04682568,2286.3,2286.2,4.37407]
[1725734274615,4.17550825,2286.3,2286.2,8.74814]
[1725734275150,3.77082568,2286.3,2286.2,8.74814]
[1725734275354,3.94818475,2286.5,2286.4,4.37368]
[1725734275504,3.77082568,2286.7,2286.6,4.37321]
[1725734275707,7.43,2286.9,2286.8,8.74584]
[1725734275944,8.567649,2286.9,2286.8,8.74584]
[1725734277578,3.77082568,2287.3,2287.2,4.37215]
[1725734278032,3.77082568,2287.3,2287.2,8.7443]
[1725734278235,3.77082568,2287.3,2287.2,4.37215]
[1725734278936,3.77082568,2287.3,2287.1,4.37223]
[1725734279137,0.37708257,2287.2,2287.1,4.37223]
[1725734279849,3.37708257,2287.2,2287.1,4.37223]
[1725734281878,3.37708257,2287.2,2286.9,4.3726]
[1725734282045,3.77082568,2287.0,2286.9,4.3726]
[1725734282240,6.77082568,2287.0,2286.9,4.3726]
[1725734282439,6.77082568,2287.0,2286.9,8.74533]
[1725734283350,3.0,2287.0,2286.9,8.74533]
[1725734283560,3.0,2287.1,2287.0,4.37254]
[1725734286751,3.0,2287.1,2286.9,8.74521]
[1725734287079,3.73213108,2287.1,2286.9,8.74521]
[1725734287571,3.73213108,2287.1,2287.0,4.37254]
[1725734289277,3.0,2287.1,2287.0,4.37254]
[1725734291588,3.0,2287.1,2286.9,4.3726]
[1725734292271,3.77082568,2287.0,2286.7,4.37295]
[1725734292600,3.77082568,2287.0,2286.2,6.68855]
[1725734292601,4.04682568,2286.8,2286.5,4.37348]
[1725734292798,3.77082568,2286.6,2286.5,4.37348]
[1725734293156,6.77082568,2286.6,2286.5,4.37348]
[1725734294389,6.77082568,2286.6,2286.5,8.74697]
[1725734296583,3.0,2286.6,2286.5,8.74697]
[1725734296782,3.0,2286.7,2286.6,4.37315]
[1725734297830,3.67708257,2286.7,2286.6,4.37315]
[1725734298129,3.67708257,2286.7,2286.5,4.37344]
[1725734298421,3.77082568,2286.6,2286.5,4.37344]
[1725734298589,6.77082568,2286.6,2286.5,4.37344]
[1725734298994,6.77082568,2286.6,2286.5,8.74688]
[1725734300856,3.77082568,2287.0,2286.7,4.37311]
[1725734301002,7.88826287,2287.2,2286.7,4.37311]
[1725734301003,11.20082568,2287.2,2286.7,4.37311]
[1725734301205,11.20082568,2287.2,2287.1,4.37234]
[1725734302048,3.77082568,2287.2,2287.1,4.37234]
[1725734302206,3.94287062,2287.2,2287.1,4.37234]
[1725734302407,6.94287062,2287.2,2287.1,4.37234]
[1725734311261,7.63715768,2287.2,2287.1,4.37234]